bitfinex/quotes_BTCUSD_20220307
["timestamp","ask_amount","ask_price","bid_price","bid_amount"]
[1646693637227,0.1947825,38199.0,38198.0,1.203797]
[1646693637427,0.1947825,38199.0,38198.0,0.403397]
[1646693638127,0.1947825,38199.0,38198.0,0.398397]
[1646693638327,0.19963118,38199.0,38198.0,0.398397]
[1646693639775,0.43963118,38199.0,38198.0,0.398397]
[1646693642276,0.4347825,38199.0,38198.0,0.398397]
[1646693642734,0.43963118,38199.0,38198.0,0.398397]
[1646693642932,0.43963118,38199.0,38198.0,0.4033]
[1646693643135,0.43963118,38199.0,38197.0,0.05]
[1646693643335,0.43963118,38199.0,38198.0,0.4033]
[1646693643535,0.43963118,38199.0,38197.0,0.05]
[1646693643734,0.43963118,38199.0,38198.0,0.4033]
[1646693644236,0.43963118,38199.0,38197.0,0.05]
[1646693644635,0.43963118,38199.0,38198.0,0.4033]
[1646693645036,0.43963118,38199.0,38197.0,0.05]
[1646693646281,0.61401638,38199.0,38197.0,0.02]
[1646693646680,0.43963118,38199.0,38197.0,0.02]
[1646693647681,0.61091079,38199.0,38197.0,0.02]
[1646693648080,0.61091079,38199.0,38198.0,0.4033]
[1646693648281,0.61091079,38199.0,38197.0,0.02]
[1646693648483,0.43963118,38199.0,38197.0,0.02]
[1646693650432,0.4347825,38199.0,38198.0,0.4033]
[1646693655182,0.43963118,38199.0,38198.0,0.4033]
[1646693655483,0.4347825,38199.0,38198.0,0.4033]
[1646693656684,0.43963118,38199.0,38198.0,0.4033]
[1646693657085,0.43963118,38199.0,38197.0,0.02]
[1646693657291,0.43963118,38199.0,38193.0,0.03903293]
[1646693657292,0.25,38198.0,38193.0,0.003]
[1646693657543,0.55814868,38194.0,38193.0,0.003]
[1646693657740,0.15484868,38194.0,38193.0,0.003]
[1646693657938,0.30484868,38194.0,38193.0,0.003]
[1646693658139,0.97074311,38194.0,38193.0,0.003]
[1646693658338,0.16200523,38186.0,38177.0,0.00018657]
[1646693658739,0.00484868,38180.0,38178.0,0.4033]
[1646693658940,0.00484868,38179.0,38178.0,0.4033]
[1646693659738,0.02642674,38185.0,38177.0,0.00018678]
[1646693660140,0.02642674,38185.0,38174.0,1.01413123]
[1646693660141,0.00031002,38176.0,38174.0,1.01413123]
[1646693660344,0.0051587,38176.0,38174.0,1.01413123]
[1646693660540,0.0051587,38176.0,38175.0,0.4033]
[1646693661786,0.00031002,38176.0,38175.0,0.4033]
[1646693662187,0.00031002,38176.0,38175.0,1.2037]
[1646693663289,0.00031002,38176.0,38175.0,1.40086244]
[1646693663690,0.00031002,38176.0,38175.0,1.2037]
[1646693664093,0.00031002,38176.0,38175.0,0.4033]
[1646693664292,0.0051587,38176.0,38175.0,0.4033]
[1646693664493,0.00508207,38176.0,38175.0,0.4033]
[1646693664695,0.00023339,38176.0,38175.0,1.2037]
[1646693669387,0.00023339,38176.0,38175.0,1.2537]
[1646693669584,3.39e-06,38176.0,38175.0,1.44543]
[1646693669785,3.39e-06,38176.0,38175.0,1.59763]
[1646693671181,0.24000339,38176.0,38175.0,1.75493]
[1646693671982,0.24000339,38176.0,38175.0,1.76802]
[1646693673640,0.24000339,38176.0,38175.0,2.08401315]
[1646693674043,0.24000339,38176.0,38175.0,2.33401315]
[1646693675146,0.24000339,38176.0,38175.0,2.53401315]
[1646693675343,0.24000339,38176.0,38175.0,2.08401315]
[1646693675553,0.24000339,38176.0,38175.0,1.76802]
[1646693677291,0.24000339,38176.0,38175.0,1.81802]
[1646693677693,0.11923774,38176.0,38175.0,1.81802]
[1646693678492,0.11923774,38176.0,38175.0,1.63448]
[1646693679495,0.11923774,38176.0,38175.0,1.56899]
[1646693679693,0.11923774,38176.0,38175.0,1.89979013]
[1646693679930,0.11916146,38176.0,38175.0,1.89979013]
[1646693681133,0.00017436,38181.0,38175.0,1.69979013]
[1646693681334,0.00034872,38181.0,38179.0,0.0999]
[1646693681632,0.00017436,38181.0,38180.0,1.2037]
[1646693682034,0.00017436,38181.0,38180.0,0.4033]
[1646693682235,0.00017436,38181.0,38175.0,0.4033]
[1646693682632,0.00017436,38181.0,38175.0,0.40347423]
[1646693682832,0.00484868,38181.0,38175.0,0.40347423]
[1646693683032,0.0001742,38182.0,38175.0,0.40347423]
[1646693683233,0.0001742,38182.0,38175.0,1.20387423]
[1646693683683,0.0001742,38182.0,38175.0,1.20404844]
[1646693683884,0.00017419,38181.0,38175.0,1.20404844]
[1646693684087,0.00017419,38181.0,38175.0,1.20387421]
[1646693684384,0.00017419,38181.0,38175.0,1.25387421]
[1646693684783,0.00017419,38181.0,38175.0,1.2537]
[1646693684983,0.00034837,38181.0,38175.0,1.25387421]
[1646693685183,0.00017418,38181.0,38175.0,0.45347421]
[1646693685384,0.00017418,38181.0,38175.0,1.25387421]
[1646693685587,0.00017418,38181.0,38175.0,0.45347421]
[1646693685986,0.00484868,38179.0,38175.0,0.45347421]
[1646693686184,0.00017418,38181.0,38175.0,0.45364845]
[1646693686386,0.00519707,38181.0,38175.0,0.45364845]
[1646693686584,0.00502289,38181.0,38175.0,0.45347424]
[1646693686784,0.00017421,38181.0,38175.0,0.45347424]
[1646693687186,0.00484868,38178.0,38175.0,0.4533]
[1646693687636,0.00484868,38178.0,38175.0,0.45347424]
[1646693688041,0.18207909,38176.0,38175.0,0.05017424]
[1646693688238,0.18020909,38176.0,38175.0,0.00017424]
[1646693688640,0.18020909,38176.0,38175.0,0.00034848]
[1646693689037,0.18020909,38176.0,38175.0,0.00017424]
[1646693689239,0.23020909,38176.0,38175.0,0.00017424]
[1646693689438,0.63350909,38176.0,38175.0,0.00017424]
[1646693689639,0.53020909,38176.0,38175.0,0.00017424]
[1646693689839,0.93350909,38176.0,38175.0,0.00017424]
[1646693690040,0.32624,38175.0,38171.0,0.03231114]
[1646693690240,0.02624,38174.0,38171.0,0.03231114]
[1646693690443,0.00484868,38172.0,38171.0,0.03231114]
[1646693695536,0.00584868,38172.0,38171.0,0.03231114]
[1646693695934,0.15584868,38172.0,38171.0,0.03231114]
[1646693696236,0.00584868,38172.0,38171.0,0.03231114]
[1646693696634,0.00484868,38172.0,38171.0,0.03231114]
[1646693698538,0.00484868,38172.0,38161.0,0.21045835]
[1646693698539,0.6533,38171.0,38161.0,0.21045835]
[1646693698811,0.6533,38171.0,38157.0,0.003]
[1646693698812,0.00484868,38162.0,38157.0,0.003]
[1646693699007,0.079088,38157.0,38154.0,0.003]
[1646693699303,0.42954,38154.0,38152.0,0.004]
[1646693699501,0.23595204,38153.0,38152.0,0.004]
[1646693699723,0.26504004,38153.0,38152.0,0.004]
[1646693700402,0.08623668,38153.0,38152.0,0.004]
[1646693700603,0.05714868,38153.0,38151.0,0.0106]
[1646693700801,0.4033,38152.0,38151.0,0.0106]
[1646693701003,0.12270168,38153.0,38151.0,0.0106]
[1646693701206,0.065553,38153.0,38152.0,0.4033]
[1646693701408,0.00255595,38153.0,38152.0,0.4033]
[1646693701801,0.1998,38158.0,38152.0,0.4033]
[1646693702002,0.065537,38155.0,38152.0,0.4033]
[1646693702202,0.065537,38155.0,38152.0,0.4533]
[1646693703038,0.065537,38155.0,38152.0,0.45350232]
[1646693704042,0.065537,38155.0,38152.0,0.4533]
[1646693704242,0.065537,38155.0,38152.0,0.66908247]
[1646693704643,0.4033,38160.0,38159.0,0.42872369]
[1646693705245,0.065535,38161.0,38159.0,0.42872369]
[1646693705449,0.065535,38161.0,38160.0,0.4033]
[1646693706487,0.065535,38161.0,38159.0,0.47872369]
[1646693706700,0.065522,38165.0,38160.0,1.5037]
[1646693706888,0.13105,38167.0,38160.0,0.4033]
[1646693707493,0.065529,38167.0,38161.0,0.4033]
[1646693707689,0.065529,38167.0,38159.0,0.47892599]
[1646693707690,0.26075398,38167.0,38159.0,0.67591447]
[1646693707892,0.131063,38164.0,38162.0,0.0001957]
[1646693708690,0.131063,38164.0,38163.0,0.4033]
[1646693708891,0.131063,38164.0,38162.0,0.05]
[1646693709292,0.131063,38164.0,38160.0,0.35]
[1646693709692,0.131063,38164.0,38160.0,0.05]
[1646693709934,0.131063,38164.0,38159.0,0.47872369]
[1646693710345,0.131063,38164.0,38159.0,0.42872369]
[1646693710346,0.42954,38163.0,38159.0,0.42872369]
[1646693710539,0.47954,38163.0,38159.0,0.42872369]
[1646693710938,0.02624,38162.0,38159.0,0.42872369]
[1646693711135,0.4033,38161.0,38159.0,0.42372369]
[1646693711336,0.6031,38160.0,38159.0,0.42372369]
[1646693711537,0.6031,38160.0,38159.0,0.42384181]
[1646693711738,0.76341942,38160.0,38159.0,0.42384181]
[1646693711939,0.82896242,38160.0,38159.0,0.42384181]
[1646693712537,0.82896242,38160.0,38159.0,0.42372369]
[1646693712736,0.62916242,38160.0,38159.0,0.42372369]
[1646693713237,0.82896242,38160.0,38159.0,0.42372369]
[1646693713436,0.83096242,38160.0,38159.0,0.42372369]
[1646693714292,0.329088,38159.0,38154.0,0.001]
[1646693714494,0.99178385,38158.0,38154.0,0.001]
[1646693714695,0.99178385,38158.0,38140.0,0.002]
[1646693714696,0.091801,38157.0,38140.0,0.002]
[1646693714893,0.091801,38157.0,38142.0,0.00060992]
[1646693714894,0.15,38148.0,38142.0,0.00060992]
[1646693715090,0.18548725,38145.0,38142.0,0.00060992]
[1646693715291,0.18548725,38145.0,38135.0,0.03150992]
[1646693715292,0.21172725,38145.0,38135.0,0.03150992]
[1646693715491,0.21172725,38145.0,38135.0,0.02450992]
[1646693715492,0.02624,38144.0,38135.0,0.02450992]
[1646693715695,0.26172725,38145.0,38135.0,0.02450992]
[1646693715887,0.46152725,38145.0,38135.0,0.02450992]
[1646693716091,0.43528725,38145.0,38135.0,0.02450992]
[1646693716287,0.43528725,38145.0,38138.0,0.00010698]
[1646693716490,0.065571,38142.0,38138.0,0.00010698]
[1646693716688,0.091811,38142.0,38138.0,0.00010698]
[1646693717291,0.42954,38141.0,38135.0,0.02450992]
[1646693717547,0.18872382,38137.0,38135.0,0.02450992]
[1646693717740,0.17872382,38137.0,38135.0,0.02450992]
[1646693717939,0.065581,38138.0,38135.0,0.02450992]
[1646693718144,0.4033,38136.0,38135.0,0.00950992]
[1646693718443,0.3,38135.0,38132.0,0.002]
[1646693718639,0.329088,38134.0,38132.0,0.002]
[1646693718839,0.1998,38133.0,38132.0,0.002]
[1646693719040,0.6031,38133.0,38132.0,0.002]
[1646693719240,0.6531,38133.0,38132.0,0.002]
[1646693719439,0.9531,38133.0,38132.0,0.002]
[1646693719941,0.4533,38133.0,38132.0,0.002]
[1646693720140,0.079006,38133.0,38132.0,0.002]
[1646693720344,0.079006,38133.0,38129.0,0.001]
[1646693720345,0.029006,38131.0,38129.0,0.001]
[1646693720542,0.094613,38131.0,38125.0,0.00079405]
[1646693720745,0.165607,38131.0,38125.0,0.00079405]
[1646693720945,0.165607,38131.0,38122.0,0.002]
[1646693721191,0.029006,38130.0,38122.0,0.002]
[1646693721406,0.2,38127.0,38107.0,0.68148427]
[1646693721596,0.0382,38116.0,38107.0,0.68148427]
[1646693721790,0.029006,38115.0,38108.0,0.21502514]
[1646693721991,0.029006,38114.0,38108.0,0.21502514]
[1646693722189,0.2498,38117.0,38108.0,0.21502514]
[1646693722394,0.181261,38115.0,38100.0,0.007233]
[1646693722590,0.065631,38114.0,38100.0,0.007233]
[1646693722792,0.02624,38113.0,38100.0,0.007233]
[1646693722990,0.065631,38114.0,38113.0,0.02348615]
[1646693723190,0.065631,38114.0,38113.0,8.615e-05]
[1646693723391,0.2360279,38114.0,38113.0,8.615e-05]
[1646693723790,0.1,38115.0,38113.0,8.615e-05]
[1646693724789,0.05,38115.0,38113.0,8.615e-05]
[1646693725442,0.052,38115.0,38113.0,8.615e-05]
[1646693725645,0.052,38115.0,38106.0,0.00046758]
[1646693725842,0.052,38115.0,38102.0,0.40383]
[1646693726044,0.052,38115.0,38112.0,0.00011688]
[1646693726644,0.25790824,38115.0,38112.0,0.00011688]
[1646693726844,0.25590824,38115.0,38112.0,0.00011688]
[1646693727044,0.25590824,38115.0,38108.0,0.40383]
[1646693727245,0.25590824,38115.0,38107.0,0.21426194]
[1646693727246,0.05,38113.0,38107.0,0.25926194]
[1646693727445,0.05,38113.0,38108.0,0.40383]
[1646693727849,2.151e-05,38113.0,38111.0,0.14999975]
[1646693728048,0.05,38123.0,38113.0,0.3]
[1646693728251,0.1998,38130.0,38114.0,0.45383]
[1646693728447,0.1998,38130.0,38114.0,0.05]
[1646693728448,0.05,38121.0,38114.0,0.05]
[1646693728691,0.05,38121.0,38113.0,0.4]
[1646693728692,0.05,38121.0,38115.0,0.50383]
[1646693729091,0.05,38121.0,38118.0,0.40383]
[1646693729290,0.05,38121.0,38119.0,0.1]
[1646693729490,0.05,38121.0,38120.0,0.40383]
[1646693729689,0.05,38121.0,38120.0,0.55383]
[1646693729890,0.025,38121.0,38120.0,0.55383]
[1646693730894,0.02492478,38121.0,38120.0,0.55383]
[1646693731193,0.14492478,38121.0,38120.0,0.55383]
[1646693732562,0.11992478,38121.0,38120.0,0.55383]
[1646693732761,0.11992478,38121.0,38120.0,0.60613]
[1646693733164,0.11992478,38121.0,38120.0,0.75612975]
[1646693733368,0.05,38125.0,38120.0,0.79547975]
[1646693733566,0.309959,38142.0,38120.0,0.79547975]
[1646693733567,0.05,38140.0,38126.0,0.40383]
[1646693733763,0.05,38140.0,38124.0,0.17623975]
[1646693733764,0.05,38140.0,38132.0,0.8004]
[1646693733963,0.05,38140.0,38133.0,0.75613]
[1646693734164,0.24998788,38140.0,38133.0,0.45613]
[1646693734363,0.24998788,38140.0,38135.0,0.40383]
[1646693734566,0.02624,38138.0,38125.0,0.3]
[1646693734767,0.02624,38138.0,38126.0,0.0523]
[1646693735165,0.02624,38136.0,38126.0,0.0523]
[1646693735468,0.05,38130.0,38126.0,0.0523]
[1646693735667,0.07624,38130.0,38121.0,0.00076731]
[1646693736066,0.029006,38129.0,38121.0,0.00076731]
[1646693736701,0.065617,38120.0,38111.0,0.3]
[1646693736894,0.065617,38120.0,38110.0,0.00019187]
[1646693736895,0.05,38117.0,38110.0,0.00019187]
[1646693737097,0.04992454,38117.0,38111.0,0.403982]
[1646693737296,0.04992454,38117.0,38113.0,0.403982]
[1646693737495,0.04992454,38117.0,38115.0,0.403982]
[1646693737694,0.04992454,38117.0,38116.0,0.403982]
[1646693738099,0.04992454,38117.0,38110.0,0.3]
[1646693738100,0.04992454,38117.0,38111.0,0.403982]
[1646693738803,0.04992454,38117.0,38110.0,0.00018153]
[1646693738999,0.04992454,38117.0,38104.0,0.0999]
[1646693739000,0.19419738,38114.0,38105.0,0.01311]
[1646693739199,0.19419738,38114.0,38104.0,0.0999]
[1646693740048,0.19136466,38107.0,38104.0,0.0999]
[1646693740251,0.25700566,38107.0,38104.0,0.0999]
[1646693740852,0.07673,38108.0,38100.0,0.007233]
[1646693741051,0.05,38108.0,38101.0,0.8004]
[1646693741249,0.05,38108.0,38102.0,0.703982]
[1646693741453,0.05,38108.0,38094.0,0.001]
[1646693741676,0.25747,38108.0,38102.0,0.00011473]
[1646693741850,0.16027838,38107.0,38102.0,0.00011473]
[1646693742052,0.21027838,38107.0,38102.0,0.00011473]
[1646693742251,0.065662,38101.0,38096.0,7.37e-05]
[1646693742649,0.01859,38102.0,38094.0,0.001]
[1646693742849,0.2498,38099.0,38094.0,0.001]
[1646693743052,0.06320432,38099.0,38094.0,0.001]
[1646693743253,0.11320432,38099.0,38094.0,0.001]
[1646693743699,0.05,38099.0,38095.0,0.403982]
[1646693743899,0.05,38099.0,38094.0,0.001]
[1646693744299,0.26758344,38099.0,38094.0,0.001]
[1646693744500,0.05,38099.0,38094.0,0.001]
[1646693745102,0.05,38099.0,38095.0,0.403982]
[1646693745303,0.05,38099.0,38094.0,0.001]
[1646693745702,0.05,38099.0,38095.0,0.403982]
[1646693745904,0.05,38099.0,38095.0,0.453982]
[1646693746200,0.05,38099.0,38095.0,0.753982]
[1646693747200,0.05,38099.0,38097.0,0.403982]
[1646693747437,0.05,38099.0,38098.0,0.403982]
[1646693747643,0.005265,38107.0,38100.0,0.403982]
[1646693747839,0.005265,38107.0,38101.0,0.3]
[1646693748038,0.005265,38107.0,38100.0,1.204382]
[1646693748238,0.005265,38107.0,38106.0,0.59417223]
[1646693748441,0.005265,38107.0,38106.0,1.14647198]
[1646693748640,0.005265,38107.0,38106.0,1.09647223]
[1646693748838,5e-06,38107.0,38106.0,1.85668175]
[1646693749042,0.009937,38118.0,38106.0,1.85668175]
[1646693749240,0.009937,38118.0,38115.0,0.8004]
[1646693749439,0.009937,38118.0,38116.0,1.204382]
[1646693749639,0.009937,38118.0,38117.0,1.1527]
[1646693749839,0.009937,38118.0,38117.0,1.306682]
[1646693750043,0.9781,38136.0,38117.0,1.306682]
[1646693750044,0.063,38127.0,38117.0,1.43901325]
[1646693750241,0.065596,38133.0,38129.0,0.48860685]
[1646693750442,0.009998,38132.0,38129.0,0.48860685]
[1646693750842,0.065596,38133.0,38129.0,0.48860685]
[1646693751049,0.26238865,38133.0,38129.0,0.48860685]
[1646693751506,0.32798339,38133.0,38129.0,0.48860685]
[1646693754409,0.39358297,38133.0,38129.0,0.48860685]
[1646693754807,0.44358297,38133.0,38129.0,0.48860685]
[1646693755050,0.44358297,38133.0,38129.0,9.5e-06]
[1646693755051,0.3498,38130.0,38129.0,9.5e-06]
[1646693755252,0.3498,38130.0,38104.0,0.01311]
[1646693755253,0.02624,38124.0,38104.0,0.01311]
[1646693755547,0.065633,38115.0,38104.0,0.01311]
[1646693755750,0.09187056,38116.0,38104.0,0.01311]
[1646693756046,0.21170362,38109.0,38103.0,0.00019664]
[1646693756252,0.21170362,38109.0,38103.0,0.30019664]
[1646693756448,0.21170362,38109.0,38103.0,0.00019664]
[1646693756850,0.02624,38116.0,38104.0,0.403982]
[1646693757048,0.02624,38116.0,38100.0,0.078738]
[1646693757049,0.02624,38116.0,38101.0,0.3]
[1646693757247,0.05,38105.0,38104.0,0.403982]
[1646693757848,0.05,38105.0,38104.0,0.90584627]
[1646693758048,0.05,38105.0,38104.0,0.50186427]
[1646693758250,0.05,38105.0,38104.0,0.20186427]
[1646693759093,0.05,38105.0,38104.0,0.50186427]
[1646693759496,0.05,38105.0,38104.0,0.20186427]
[1646693759693,0.05,38105.0,38104.0,0.60584627]
[1646693759894,0.05,38105.0,38104.0,0.60084627]
[1646693760293,0.05,38105.0,38104.0,0.403982]
[1646693760696,0.05,38105.0,38097.0,0.001]
[1646693760899,0.065643,38104.0,38103.0,0.00018568]
[1646693761404,0.05,38105.0,38103.0,0.40416768]
[1646693761598,0.05,38105.0,38103.0,0.00018568]
[1646693761797,0.05,38105.0,38097.0,0.301]
[1646693761997,0.05,38105.0,38100.0,0.403982]
[1646693762454,0.05,38105.0,38103.0,0.19812437]
[1646693763046,0.00351242,38105.0,38103.0,0.19812437]
[1646693763244,0.00351242,38105.0,38102.0,0.00016341]
[1646693763646,0.065641,38104.0,38102.0,0.00016341]
[1646693764053,0.131291,38104.0,38102.0,0.00016341]
[1646693764254,0.20022707,38103.0,38099.0,0.00540407]
[1646693764449,0.27333707,38103.0,38101.0,0.00016341]
[1646693764649,0.47031007,38103.0,38101.0,0.00016341]
[1646693764848,0.60162534,38103.0,38101.0,0.00016341]
[1646693765450,0.86426334,38103.0,38099.0,0.00540407]
[1646693765650,0.86626334,38103.0,38099.0,0.00540407]
[1646693766049,1.32606334,38103.0,38099.0,0.00540407]
[1646693766294,1.32606334,38103.0,38099.0,4.07e-06]
[1646693766295,0.365656,38102.0,38099.0,4.07e-06]
[1646693766492,0.065655,38101.0,38099.0,4.07e-06]
[1646693766893,0.065655,38101.0,38099.0,0.00018397]
[1646693767795,0.065655,38101.0,38099.0,4.07e-06]
[1646693769100,0.33916457,38100.0,38091.0,0.004]
[1646693769404,0.2813664,38095.0,38092.0,0.00071971]
[1646693769596,0.3076064,38095.0,38084.0,0.001]
[1646693769795,0.3076064,38095.0,38082.0,0.001]
[1646693769796,0.15,38090.0,38082.0,0.001]
[1646693770047,0.1731702,38089.0,38082.0,0.001]
[1646693770243,0.17071305,38082.0,38075.0,0.3]
[1646693770442,0.065688,38080.0,38074.0,0.42086782]
[1646693770645,0.065688,38080.0,38073.0,0.301]
[1646693771044,0.065688,38080.0,38073.0,0.001]
[1646693771545,0.131376,38080.0,38073.0,0.19749937]
[1646693771950,0.131376,38080.0,38073.0,0.001]
[1646693772144,0.195546,38080.0,38073.0,0.001]
[1646693773695,0.195546,38080.0,38071.0,0.23773]
[1646693773896,0.19707117,38078.0,38069.0,0.1]
[1646693774098,0.06569,38076.0,38075.0,0.00196892]
[1646693774298,0.06568917,38078.0,38076.0,0.01082493]
[1646693774502,0.24016278,38078.0,38076.0,0.01082493]
[1646693774701,0.30585578,38078.0,38076.0,0.01082493]
[1646693774901,0.30585578,38078.0,38076.0,0.01056921]
[1646693775100,0.37154578,38078.0,38076.0,0.01056921]
[1646693775702,0.065699,38077.0,38076.0,0.01056921]
[1646693776903,0.365699,38077.0,38076.0,0.01056921]
[1646693777108,0.065699,38077.0,38076.0,0.01056921]
[1646693777553,0.065699,38077.0,38065.0,0.001009]
[1646693777554,0.32624,38076.0,38065.0,0.001009]
[1646693777753,0.094925,38072.0,38065.0,0.001009]
[1646693777953,0.16740604,38071.0,38065.0,0.001009]
[1646693778551,0.1998,38070.0,38065.0,0.001009]
[1646693778750,0.065721,38067.0,38063.0,0.00126037]
[1646693778949,0.2487317,38067.0,38066.0,0.0001959]
[1646693779554,0.5487317,38067.0,38066.0,0.0001959]
[1646693779754,0.2487317,38067.0,38066.0,0.0001959]
[1646693779948,0.2487317,38067.0,38063.0,0.00126037]
[1646693779949,0.31444677,38067.0,38063.0,0.00126037]
[1646693780152,0.20409399,38068.0,38065.0,0.0001959]
[1646693780351,0.07265199,38068.0,38065.0,0.0001959]
[1646693780550,0.19715411,38072.0,38065.0,0.0001959]
[1646693780551,0.17650293,38071.0,38065.0,0.0001959]
[1646693780750,0.30791893,38071.0,38065.0,0.0001959]
[1646693781207,0.13141347,38069.0,38066.0,0.0001959]
[1646693781410,0.0483,38075.0,38066.0,0.0001959]
[1646693781610,0.009799,38078.0,38066.0,0.0001959]
[1646693781611,0.009799,38078.0,38067.0,0.55398175]
[1646693781811,0.009799,38078.0,38067.0,0.453982]
[1646693782007,0.009799,38078.0,38067.0,0.403982]
[1646693782208,0.269799,38078.0,38068.0,0.1]
[1646693782515,0.269799,38078.0,38074.0,0.403982]
[1646693782711,0.269799,38078.0,38075.0,0.1]
[1646693782913,0.269799,38078.0,38076.0,1.54689941]
[1646693783109,0.2301,38095.0,38082.0,0.10682614]
[1646693783110,0.5301,38095.0,38082.0,0.10682614]
[1646693783310,0.4862,38096.0,38082.0,0.10682614]
[1646693783709,0.22299903,38093.0,38082.0,0.10682614]
[1646693784112,0.065674,38091.0,38082.0,0.10682614]
[1646693784712,0.065674,38091.0,38083.0,0.3]
[1646693784951,0.065674,38091.0,38082.0,0.10682614]
[1646693785348,0.065674,38091.0,38083.0,0.3]
[1646693785746,0.065674,38091.0,38086.0,0.16491575]
[1646693786848,0.065674,38091.0,38083.0,0.3]
[1646693787249,0.065674,38091.0,38087.0,0.00019316]
[1646693788251,0.065666,38094.0,38086.0,0.2249034]
[1646693788449,0.065666,38094.0,38087.0,0.00019316]
[1646693788895,0.27793804,38094.0,38087.0,0.00019316]
[1646693789094,0.065666,38094.0,38087.0,0.00019316]
[1646693789298,0.065674,38092.0,38087.0,0.00019316]
[1646693789496,0.13133612,38094.0,38083.0,0.3]
[1646693789796,0.13133612,38094.0,38089.0,0.00019316]
[1646693790396,0.065675,38093.0,38089.0,0.00019316]
[1646693790617,0.13133612,38094.0,38089.0,0.00019316]
[1646693790798,0.13133612,38094.0,38085.0,0.3]
[1646693791001,0.13133612,38094.0,38090.0,0.00019322]
[1646693791199,0.065666,38094.0,38090.0,0.00019322]
[1646693791900,0.065666,38094.0,38084.0,0.1633825]
[1646693792200,0.065666,38094.0,38090.0,0.00018649]
[1646693792444,0.325666,38094.0,38090.0,0.00018649]
[1646693792946,0.320666,38094.0,38090.0,0.00018649]
[1646693793144,0.320666,38094.0,38090.0,0.16793816]
[1646693793351,0.26,38094.0,38090.0,0.16793816]
[1646693793752,0.26,38094.0,38091.0,0.75497067]
[1646693793946,0.26,38094.0,38091.0,0.60228175]
[1646693794144,0.26,38094.0,38091.0,0.61539175]
[1646693794345,0.12907,38094.0,38093.0,0.82664]
[1646693794545,0.12907,38094.0,38093.0,0.502282]
[1646693794744,0.12907,38094.0,38093.0,0.5483]
[1646693794945,0.12907,38094.0,38093.0,0.952282]
[1646693795744,0.12907,38094.0,38093.0,0.86080676]
[1646693795945,0.12907,38094.0,38093.0,0.652282]
[1646693796198,0.12907,38094.0,38093.0,0.86086066]
[1646693796601,0.12907,38094.0,38093.0,0.88710066]
[1646693796998,0.4968,38112.0,38095.0,1.296262]
[1646693797199,0.17198743,38111.0,38103.0,0.17343158]
[1646693797401,0.17198743,38111.0,38100.0,0.0483]
[1646693798200,8.246e-05,38107.0,38100.0,0.0483]
[1646693798400,8.246e-05,38107.0,38103.0,0.15805678]
[1646693799098,0.065643,38110.0,38103.0,0.15805678]
[1646693799497,8.246e-05,38107.0,38103.0,0.15805678]
[1646693799944,8.246e-05,38107.0,38100.0,0.0483]
[1646693800344,0.131289,38112.0,38100.0,0.0483]
[1646693800751,0.02624,38112.0,38100.0,0.0483]
[1646693800950,0.18268653,38109.0,38101.0,0.16096872]
[1646693801146,0.18268653,38109.0,38098.0,0.005]
[1646693801346,0.18268653,38109.0,38097.0,0.01311]
[1646693801751,0.091896,38107.0,38097.0,0.01311]
[1646693801947,0.091896,38107.0,38093.0,0.005]
[1646693801948,0.02624,38105.0,38093.0,0.005]
[1646693802148,0.20859009,38101.0,38093.0,0.005]
[1646693802749,0.46859009,38101.0,38093.0,0.005]
[1646693802947,0.46859009,38101.0,38090.0,0.00019445]
[1646693803151,0.0001944,38100.0,38090.0,0.00019445]
[1646693803990,0.46859009,38101.0,38089.0,0.19504128]
[1646693804193,0.46859009,38101.0,38090.0,0.30019444]
[1646693804194,0.00019439,38100.0,38090.0,0.30019444]
[1646693805192,0.065662,38099.0,38090.0,0.3]
[1646693805394,0.065662,38099.0,38090.0,0.30019444]
[1646693805594,0.00019439,38100.0,38090.0,0.30019444]
[1646693806394,0.49483009,38101.0,38089.0,0.19504128]
[1646693806594,0.49483009,38101.0,38082.0,0.20672614]
[1646693806595,0.00019439,38100.0,38090.0,0.00019444]
[1646693807442,0.065666,38098.0,38090.0,0.00019444]
[1646693807645,0.065666,38098.0,38090.0,0.16181887]
[1646693807848,0.065666,38098.0,38090.0,0.00019444]
[1646693808844,0.065666,38098.0,38087.0,0.21269199]
[1646693809045,0.13133467,38098.0,38090.0,0.00018368]
[1646693809444,0.065666,38098.0,38090.0,0.00018368]
[1646693810046,0.065666,38098.0,38082.0,0.15682614]
[1646693810047,0.21452359,38096.0,38082.0,0.15682614]
[1646693810248,0.065668,38095.0,38090.0,0.00018368]
[1646693810446,0.00034308,38088.0,38083.0,0.403982]
[1646693811201,0.00034308,38088.0,38086.0,0.403982]
[1646693811599,0.00034308,38088.0,38087.0,0.403982]
[1646693812299,0.00034308,38088.0,38083.0,0.403982]
[1646693812498,0.00034308,38088.0,38086.0,9.487e-05]
[1646693813100,0.26034308,38088.0,38086.0,9.487e-05]
[1646693813501,0.26034308,38088.0,38084.0,0.17223282]
[1646693813705,0.26034308,38088.0,38085.0,0.40407687]
[1646693813901,0.26034308,38088.0,38085.0,9.487e-05]
[1646693814302,0.26034308,38088.0,38087.0,0.403982]
[1646693814502,0.26034308,38088.0,38085.0,9.487e-05]
[1646693814701,0.26034308,38088.0,38086.0,0.403982]
[1646693814943,0.26034308,38088.0,38087.0,0.403982]
[1646693817044,0.26034308,38088.0,38086.0,0.00018059]
[1646693817244,0.26034308,38088.0,38085.0,0.3]
[1646693817444,0.26034308,38088.0,38086.0,0.00018059]
[1646693817844,0.26034308,38088.0,38087.0,0.403982]
[1646693818046,0.26034308,38088.0,38086.0,0.00018059]
[1646693818246,0.26034308,38088.0,38087.0,0.403982]
[1646693818445,0.26034308,38088.0,38085.0,0.3]
[1646693818700,0.26034308,38088.0,38087.0,0.403982]
[1646693819495,0.26034308,38088.0,38084.0,0.17223282]
[1646693819698,0.26034308,38088.0,38086.0,0.00017736]
[1646693820300,0.26034308,38088.0,38086.0,0.40415936]
[1646693820700,0.26034308,38088.0,38086.0,0.403982]
[1646693823340,0.26034308,38088.0,38087.0,0.78071274]
[1646693831654,0.26034308,38088.0,38082.0,0.26720103]